[Event "Allsvenskan Div I 3 2023/2024: SS Manhem - SS Manhem II"]
[Site "Goteborgs schackcentrum, Vegagatan 20, Gothenburg, Sweden"]
[Date "2023.11.19"]
[Round "1.1"]
[White "Svensson, Lars"]
[Black "Welin, Mats"]
[Result "1/2-1/2"]
[TimeControl "90 minutes for 40 moves + 30 minutes for the rest of the game + 30 seconds per move from move one."]
[BlackTitle "FM"]
[WhiteFideId "1734466"]
[BlackFideId "1705180"]
[WhiteElo "2062"]
[BlackElo "2266"]

1. d4 {[%clk 01:30:37]} {[%emt 00:00:22]} Nf6 {[%clk 01:30:25]} {[%emt
00:00:36]} 2. Nf3 {[%clk 01:30:50]} {[%emt 00:00:16]} e6 {[%clk 01:29:59]}
{[%emt 00:00:57]} 3. c4 {[%clk 01:30:58]} {[%emt 00:00:22]} d5 {[%clk
01:29:45]} {[%emt 00:00:43]} 4. Nc3 {[%clk 01:31:15]} {[%emt 00:00:13]} c6
{[%clk 01:28:32]} {[%emt 00:01:44]} 5. e3 {[%clk 01:27:03]} {[%emt 00:04:42]}
Nbd7 {[%clk 01:24:29]} {[%emt 00:04:33]} 6. Qc2 {[%clk 01:25:21]} {[%emt
00:02:12]} Bd6 {[%clk 01:24:15]} {[%emt 00:00:44]} 7. b3 {[%clk 01:24:02]}
{[%emt 00:01:49]} O-O {[%clk 01:23:52]} {[%emt 00:00:52]} 8. Bb2 {[%clk
01:24:06]} {[%emt 00:00:27]} e5 {[%clk 01:21:30]} {[%emt 00:02:51]} 9. dxe5
{[%clk 01:24:14]} {[%emt 00:00:23]} Nxe5 {[%clk 01:21:54]} {[%emt 00:00:06]} 10.
Nxe5 {[%clk 01:24:26]} {[%emt 00:00:18]} Bxe5 {[%clk 01:22:11]} {[%emt
00:00:13]} 11. cxd5 {[%clk 01:02:51]} {[%emt 00:22:05]} cxd5 {[%clk 01:20:33]}
{[%emt 00:02:09]} 12. Be2 {[%clk 00:59:42]} {[%emt 00:03:38]} Be6 {[%clk
01:14:43]} {[%emt 00:06:19]} 13. O-O {[%clk 00:53:52]} {[%emt 00:06:21]} Qc7
{[%clk 01:13:02]} {[%emt 00:02:12]} 14. f4 {[%clk 00:50:45]} {[%emt 00:03:37]}
Bd6 {[%clk 01:12:51]} {[%emt 00:00:40]} 15. Qd3 {[%clk 00:47:11]} {[%emt
00:04:04]} a6 {[%clk 01:07:33]} {[%emt 00:05:48]} 16. Bf3 {[%clk 00:43:46]}
{[%emt 00:03:56]} d4 {[%clk 00:59:46]} {[%emt 00:08:17]} 17. Ne2 {[%clk
00:36:21]} {[%emt 00:07:55]} dxe3 {[%clk 00:57:36]} {[%emt 00:02:40]} 18. Rac1
{[%clk 00:33:04]} {[%emt 00:03:46]} Qe7 {[%clk 00:52:17]} {[%emt 00:05:49]} 19.
Bxf6 {[%clk 00:31:30]} {[%emt 00:02:04]} gxf6 {[%clk 00:52:03]} {[%emt
00:00:44]} 20. Qxe3 {[%clk 00:31:32]} {[%emt 00:00:28]} Rad8 {[%clk 00:46:51]}
{[%emt 00:05:42]} 21. Kh1 {[%clk 00:25:36]} {[%emt 00:06:26]} Rfe8 {[%clk
00:37:51]} {[%emt 00:09:31]} 22. Qe4 {[%clk 00:21:09]} {[%emt 00:04:56]} Bc8
{[%clk 00:27:02]} {[%emt 00:11:19]} 23. Qxe7 {[%clk 00:13:57]} {[%emt
00:07:43]} Bxe7 {[%emt 00:00:33]} 24. Rcd1 {[%clk 00:12:08]} {[%emt 00:02:16]}
Bb4 {[%clk 00:22:01]} {[%emt 00:05:31]} 25. Rd4 {[%clk 00:05:57]} {[%emt
00:06:41]} Rxd4 {[%clk 00:13:45]} {[%emt 00:08:46]} 26. Nxd4 {[%clk 00:06:25]}
{[%emt 00:00:02]} Bc5 {[%clk 00:13:47]} {[%emt 00:00:28]} 27. Ne2 {[%clk
00:05:24]} {[%emt 00:01:31]} b6 {[%clk 00:09:37]} {[%emt 00:04:40]} 28. Nc3
{[%clk 00:04:41]} {[%emt 00:01:14]} f5 {[%clk 00:09:41]} {[%emt 00:00:25]} 29.
g3 {[%clk 00:04:16]} {[%emt 00:00:54]} Re3 {[%clk 00:08:41]} {[%emt 00:01:30]}
30. Nd5 {[%clk 00:03:57]} {[%emt 00:00:50]} Rd3 {[%clk 00:08:34]} {[%emt
00:00:38]} 31. b4 {[%clk 00:04:05]} {[%emt 00:00:22]} Bd6 {[%clk 00:04:36]}
{[%emt 00:04:27]} 32. Nxb6 {[%clk 00:04:13]} {[%emt 00:00:22]} Be6 {[%clk
00:04:54]} {[%emt 00:00:12]} 33. Rd1 {[%clk 00:02:28]} {[%emt 00:02:15]} Rxd1+
{[%clk 00:04:30]} {[%emt 00:00:53]} 34. Bxd1 {[%clk 00:02:57]} Bxa2 {[%clk
00:04:51]} {[%emt 00:00:09]} 35. Be2 {[%clk 00:03:03]} {[%emt 00:00:24]} Bxb4
{[%clk 00:04:56]} {[%emt 00:00:25]} 36. Bxa6 {[%clk 00:02:46]} {[%emt
00:00:48]} Bc5 {[%clk 00:04:58]} {[%emt 00:00:27]} 37. Nc4 {[%clk 00:02:56]}
{[%emt 00:00:20]} Kg7 {[%clk 00:03:45]} {[%emt 00:01:44]} 38. Kg2 {[%clk
00:02:55]} {[%emt 00:00:30]} Kf6 {[%clk 00:03:58]} {[%emt 00:00:17]} 39. Kf3
{[%clk 00:01:05]} {[%emt 00:02:20]} Bb1 {[%clk 00:03:41]} {[%emt 00:00:48]} 40.
Bb7 {[%clk 00:01:08]} {[%emt 00:00:27]} Bc2 {[%clk 00:03:18]} {[%emt 00:00:52]}
41. Bd5 {[%clk 00:00:44]} {[%emt 00:00:54]} Bd1+ {[%clk 00:03:15]} {[%emt
00:00:33]} 42. Kg2 {[%clk 00:01:00]} {[%emt 00:00:14]} Bb3 {[%clk 00:02:46]}
{[%emt 00:00:59]} 1/2-1/2

[Event "Allsvenskan Div I 3 2023/2024: SS Manhem - SS Manhem II"]
[Site "Goteborgs schackcentrum, Vegagatan 20, Gothenburg, Sweden"]
[Date "2023.11.19"]
[Round "1.2"]
[White "Fendrich, David"]
[Black "Bengtsson, Jessica"]
[Result "1-0"]
[TimeControl "90 minutes for 40 moves + 30 minutes for the rest of the game + 30 seconds per move from move one."]
[BlackTitle "WFM"]
[WhiteFideId "1705725"]
[BlackFideId "1711083"]
[WhiteElo "2169"]
[BlackElo "2046"]

1. c4 {[%clk 01:30:56]} {[%emt 00:00:03]} e6 {[%clk 01:30:51]} {[%emt
00:00:10]} 2. g3 {[%clk 01:31:07]} {[%emt 00:00:19]} d5 {[%clk 01:31:13]}
{[%emt 00:00:06]} 3. Bg2 {[%clk 01:31:30]} {[%emt 00:00:09]} Nf6 {[%clk
01:31:34]} {[%emt 00:00:09]} 4. Nf3 {[%clk 01:31:42]} {[%emt 00:00:18]} Be7
{[%clk 01:31:52]} {[%emt 00:00:12]} 5. O-O {[%clk 01:31:52]} {[%emt 00:00:19]}
c5 {[%clk 01:31:36]} {[%emt 00:00:46]} 6. b3 {[%clk 01:21:58]} {[%emt
00:10:24]} Nc6 {[%clk 01:30:33]} {[%emt 00:01:33]} 7. e3 {[%clk 01:21:30]}
{[%emt 00:00:58]} d4 {[%clk 01:24:31]} {[%emt 00:06:32]} 8. exd4 {[%clk
01:19:50]} {[%emt 00:02:11]} cxd4 {[%clk 01:24:45]} {[%emt 00:00:15]} 9. d3
{[%clk 01:18:35]} {[%emt 00:01:46]} O-O {[%clk 01:24:01]} {[%emt 00:01:13]} 10.
a3 {[%clk 01:11:06]} {[%emt 00:07:59]} a5 {[%clk 01:21:09]} {[%emt 00:03:22]}
11. Re1 {[%clk 01:09:06]} {[%emt 00:02:30]} Ne8 {[%clk 01:18:41]} {[%emt
00:02:58]} 12. Ne5 {[%clk 01:03:48]} {[%emt 00:05:48]} Nxe5 {[%clk 01:16:40]}
{[%emt 00:02:31]} 13. Rxe5 {[%clk 01:04:11]} {[%emt 00:00:07]} f6 {[%clk
01:13:04]} {[%emt 00:04:06]} 14. Re1 {[%clk 01:04:19]} {[%emt 00:00:22]} e5
{[%clk 01:08:24]} {[%emt 00:05:09]} 15. Nd2 {[%clk 00:59:55]} {[%emt 00:04:55]}
Nd6 {[%clk 01:05:53]} {[%emt 00:03:02]} 16. Ne4 {[%clk 00:53:52]} {[%emt
00:06:32]} Ra7 {[%clk 00:58:50]} {[%emt 00:07:32]} 17. Bd2 {[%clk 00:49:39]}
{[%emt 00:04:45]} Bf5 {[%clk 00:49:31]} {[%emt 00:09:49]} 18. Qe2 {[%clk
00:41:55]} {[%emt 00:08:14]} Kh8 {[%clk 00:40:46]} {[%emt 00:09:15]} 19. f4
{[%clk 00:30:56]} {[%emt 00:11:29]} Nxe4 {[%clk 00:37:39]} {[%emt 00:03:36]} 20.
Bxe4 {[%clk 00:31:16]} {[%emt 00:00:10]} Bxe4 {[%clk 00:35:28]} {[%emt
00:02:42]} 21. Qxe4 {[%clk 00:31:39]} {[%emt 00:00:07]} Bd6 {[%clk 00:35:45]}
{[%emt 00:00:13]} 22. fxe5 {[%clk 00:23:34]} {[%emt 00:08:36]} fxe5 {[%clk
00:32:55]} {[%emt 00:03:19]} 23. Rf1 {[%clk 00:18:49]} {[%emt 00:05:15]} b6
{[%clk 00:29:27]} {[%emt 00:03:58]} 24. Rxf8+ {[%clk 00:18:21]} {[%emt
00:00:58]} Qxf8 {[%clk 00:29:49]} {[%emt 00:00:08]} 25. Rf1 {[%clk 00:18:43]}
{[%emt 00:00:07]} Rf7 {[%clk 00:24:28]} {[%emt 00:05:51]} 26. Rxf7 {[%clk
00:19:05]} {[%emt 00:00:08]} Qxf7 {[%clk 00:24:57]} {[%emt 00:00:02]} 27. Qa8+
{[%clk 00:15:53]} {[%emt 00:03:41]} Qf8 {[%clk 00:15:38]} {[%emt 00:09:49]} 28.
Qxf8+ {[%clk 00:15:21]} {[%emt 00:01:03]} Bxf8 {[%clk 00:16:06]} {[%emt
00:00:02]} 29. Kf2 {[%clk 00:05:57]} {[%emt 00:09:54]} Kg8 {[%clk 00:11:13]}
{[%emt 00:05:23]} 30. Kf3 {[%clk 00:06:20]} {[%emt 00:00:07]} Kf7 {[%clk
00:11:29]} {[%emt 00:00:14]} 31. Ke4 {[%clk 00:06:30]} {[%emt 00:00:20]} Ke6
{[%clk 00:11:55]} {[%emt 00:00:04]} 32. Bg5 {[%clk 00:05:58]} {[%emt 00:01:02]}
b5 {[%clk 00:03:07]} {[%emt 00:09:17]} 33. cxb5 {[%clk 00:06:12]} {[%emt
00:00:16]} Bxa3 {[%clk 00:03:27]} {[%emt 00:00:09]} 34. Bd8 {[%clk 00:05:19]}
{[%emt 00:01:23]} Bd6 {[%clk 00:01:13]} {[%emt 00:02:45]} 35. Bxa5 {[%clk
00:05:36]} {[%emt 00:00:13]} Bb8 {[%clk 00:01:27]} {[%emt 00:00:15]} 36. g4
{[%clk 00:04:16]} {[%emt 00:01:50]} Kd6 {[%clk 00:01:17]} {[%emt 00:00:41]} 37.
Bb4+ {[%clk 00:03:17]} {[%emt 00:01:29]} Ke6 {[%clk 00:01:46]} {[%emt
00:00:01]} 38. Bc5 {[%clk 00:02:38]} {[%emt 00:01:09]} g6 {[%clk 00:00:38]}
{[%emt 00:01:38]} 39. h4 {[%clk 00:01:41]} {[%emt 00:01:27]} h5 {[%clk
00:00:40]} {[%emt 00:00:28]} 40. gxh5 {[%clk 00:00:54]} {[%emt 00:01:18]} gxh5
{[%clk 00:01:03]} {[%emt 00:00:06]} 41. b6 {[%clk 00:28:09]} {[%emt 00:03:14]}
Kd7 {[%clk 00:27:32]} {[%emt 00:04:02]} 42. Bf8 {[%clk 00:25:55]} {[%emt
00:02:44]} Ke6 {[%clk 00:26:02]} {[%emt 00:02:00]} 43. Bh6 {[%clk 00:26:09]}
{[%emt 00:00:16]} Bd6 {[%clk 00:25:34]} {[%emt 00:00:57]} 44. Bg5 {[%clk
00:26:01]} {[%emt 00:00:38]} Bc5 {[%clk 00:23:27]} {[%emt 00:02:37]} 45. Bd8
{[%clk 00:24:54]} {[%emt 00:01:37]} Bd6 {[%clk 00:23:39]} {[%emt 00:00:18]} 46.
Bc7 {[%clk 00:24:58]} {[%emt 00:00:26]} 1-0

[Event "Allsvenskan Div I 3 2023/2024: SS Manhem - SS Manhem II"]
[Site "Goteborgs schackcentrum, Vegagatan 20, Gothenburg, Sweden"]
[Date "2023.11.19"]
[Round "1.3"]
[White "Abrahamsson, Patrik"]
[Black "Akesson, Joel"]
[Result "0-1"]
[TimeControl "90 minutes for 40 moves + 30 minutes for the rest of the game + 30 seconds per move from move one."]
[BlackTitle "FM"]
[WhiteFideId "1716484"]
[BlackFideId "1705040"]
[WhiteElo "1929"]
[BlackElo "2212"]

1. e4 {[%clk 01:30:53]} {[%emt 00:00:06]} e6 {[%clk 01:30:55]} {[%emt
00:00:05]} 2. b3 {[%clk 01:30:12]} {[%emt 00:01:11]} d5 {[%clk 01:28:21]}
{[%emt 00:03:04]} 3. Bb2 {[%clk 01:30:31]} {[%emt 00:00:11]} dxe4 {[%clk
01:27:01]} {[%emt 00:01:50]} 4. Nc3 {[%clk 01:30:55]} {[%emt 00:00:06]} Nf6
{[%clk 01:27:05]} {[%emt 00:00:26]} 5. Qe2 {[%clk 01:31:13]} {[%emt 00:00:12]}
Nc6 {[%clk 01:25:31]} {[%emt 00:02:05]} 6. Nxe4 {[%clk 01:23:43]} {[%emt
00:08:00]} Be7 {[%clk 01:21:25]} {[%emt 00:04:35]} 7. Nf3 {[%emt 00:00:33]} O-O
{[%clk 01:16:48]} {[%emt 00:05:03]} 8. d4 {[%clk 01:16:36]} {[%emt 00:07:37]}
a5 {[%clk 01:06:02]} {[%emt 00:11:16]} 9. a3 {[%clk 01:15:07]} {[%emt
00:01:58]} b6 {[%clk 00:42:23]} {[%emt 00:24:10]} 10. c4 {[%clk 01:01:53]}
{[%emt 00:13:44]} Bb7 {[%clk 00:39:38]} {[%emt 00:03:14]} 11. Ned2 {[%clk
00:47:50]} {[%emt 00:14:34]} Nb8 {[%clk 00:29:35]} {[%emt 00:10:32]} 12. h3
{[%clk 00:39:19]} {[%emt 00:09:02]} c5 {[%clk 00:25:42]} {[%emt 00:04:22]} 13.
Qe3 {[%clk 00:29:56]} {[%emt 00:09:54]} Nc6 {[%clk 00:20:32]} {[%emt 00:05:38]}
14. dxc5 {[%clk 00:20:23]} {[%emt 00:10:04]} Bxc5 {[%clk 00:17:36]} {[%emt
00:03:27]} 15. Qc3 {[%clk 00:18:59]} {[%emt 00:01:54]} e5 {[%clk 00:14:22]}
{[%emt 00:03:43]} 16. Rd1 {[%clk 00:16:15]} {[%emt 00:03:14]} Qe7 {[%clk
00:12:27]} {[%emt 00:02:25]} 17. Be2 {[%clk 00:10:39]} {[%emt 00:06:06]} Nd4
{[%clk 00:08:53]} {[%emt 00:04:04]} 18. Nxd4 {[%clk 00:09:14]} {[%emt
00:01:56]} exd4 {[%clk 00:08:35]} {[%emt 00:00:48]} 19. Qd3 {[%clk 00:08:41]}
{[%emt 00:01:03]} Rfe8 {[%clk 00:08:10]} {[%emt 00:00:55]} 20. Kf1 {[%clk
00:07:53]} {[%emt 00:01:18]} Qxe2+ {[%clk 00:03:00]} {[%emt 00:05:39]} 21. Qxe2
{[%clk 00:08:08]} {[%emt 00:00:16]} Bxg2+ {[%clk 00:03:24]} {[%emt 00:00:05]}
22. Kxg2 {[%clk 00:07:29]} {[%emt 00:01:10]} Rxe2 {[%clk 00:03:48]} {[%emt
00:00:06]} 23. Rhe1 {[%clk 00:05:51]} {[%emt 00:02:08]} Rae8 {[%clk 00:03:49]}
{[%emt 00:00:28]} 24. Rxe2 {[%clk 00:05:48]} {[%emt 00:00:33]} Rxe2 {[%clk
00:04:15]} {[%emt 00:00:03]} 25. Kf3 {[%clk 00:06:06]} {[%emt 00:00:13]} d3
{[%clk 00:03:08]} {[%emt 00:01:37]} 26. Bxf6 {[%clk 00:06:19]} {[%emt
00:00:18]} Rxf2+ {[%clk 00:03:21]} {[%emt 00:00:17]} 27. Kg3 {[%clk 00:06:42]}
{[%emt 00:00:07]} Rxf6 {[%clk 00:03:27]} {[%emt 00:00:24]} 28. Ne4 {[%clk
00:07:01]} {[%emt 00:00:11]} Rg6+ {[%clk 00:03:42]} {[%emt 00:00:14]} 29. Kf3
{[%clk 00:07:16]} {[%emt 00:00:16]} Bxa3 {[%clk 00:03:15]} {[%emt 00:00:56]} 30.
Rxd3 {[%clk 00:07:30]} {[%emt 00:00:18]} h6 {[%clk 00:02:03]} {[%emt 00:01:41]}
31. Rd8+ {[%clk 00:07:40]} {[%emt 00:00:19]} Kh7 {[%clk 00:02:29]} {[%emt
00:00:05]} 32. Rb8 {[%clk 00:07:52]} {[%emt 00:00:18]} f5 {[%clk 00:02:28]}
{[%emt 00:00:31]} 33. Nc3 {[%clk 00:07:49]} {[%emt 00:00:33]} Bd6 {[%clk
00:02:05]} {[%emt 00:00:53]} 34. Rxb6 {[%clk 00:06:41]} {[%emt 00:01:38]} Rg3+
{[%clk 00:02:30]} {[%emt 00:00:04]} 35. Ke2 {[%clk 00:07:02]} {[%emt 00:00:10]}
Rxc3 {[%clk 00:02:43]} {[%emt 00:00:17]} 36. Rxd6 {[%clk 00:07:25]} {[%emt
00:00:06]} Rxb3 {[%clk 00:03:06]} {[%emt 00:00:07]} 37. Ra6 {[%clk 00:06:44]}
{[%emt 00:01:11]} Rxh3 {[%clk 00:02:52]} {[%emt 00:00:45]} 38. Rxa5 {[%clk
00:07:04]} {[%emt 00:00:10]} Rc3 {[%clk 00:02:56]} {[%emt 00:00:25]} 39. c5
{[%clk 00:07:16]} {[%emt 00:00:19]} Kg6 {[%clk 00:01:08]} {[%emt 00:02:17]} 40.
Kd2 {[%clk 00:07:34]} {[%emt 00:00:13]} Rc4 {[%clk 00:01:32]} {[%emt 00:00:05]}
41. Kd3 {[%clk 00:08:00]} {[%emt 00:00:04]} Rc1 {[%clk 00:01:54]} {[%emt
00:00:07]} 42. Kd2 {[%clk 00:08:26]} {[%emt 00:00:05]} Rb1 {[%clk 00:02:05]}
{[%emt 00:00:18]} 43. Ra6+ {[%clk 00:08:06]} {[%emt 00:00:51]} Kg5 {[%clk
00:01:50]} {[%emt 00:00:43]} 44. Rb6 {[%clk 00:08:32]} {[%emt 00:00:06]} Ra1
{[%clk 00:01:36]} {[%emt 00:00:44]} 45. c6 {[%clk 00:04:06]} {[%emt 00:04:57]}
Ra8 {[%clk 00:26:32]} {[%emt 00:05:32]} 46. c7 {[%clk 00:34:20]} {[%emt
00:00:17]} Rc8 {[%clk 00:26:47]} {[%emt 00:00:13]} 47. Rc6 {[%clk 00:34:48]}
{[%emt 00:00:04]} f4 {[%clk 00:25:36]} {[%emt 00:01:42]} 48. Ke2 {[%clk
00:35:07]} {[%emt 00:00:11]} Kf5 {[%clk 00:24:26]} {[%emt 00:01:39]} 49. Kf3
{[%clk 00:33:31]} {[%emt 00:02:07]} Ke5 {[%clk 00:24:13]} {[%emt 00:00:42]} 50.
Rc4 {[%clk 00:32:30]} {[%emt 00:01:30]} g5 {[%clk 00:24:01]} {[%emt 00:00:41]}
51. Kg4 {[%clk 00:32:09]} {[%emt 00:00:54]} Kd6 {[%clk 00:24:00]} {[%emt
00:00:30]} 52. Rc3 {[%clk 00:31:24]} {[%emt 00:01:16]} Rxc7 {[%clk 00:24:19]}
{[%emt 00:00:11]} 53. Rh3 {[%clk 00:31:36]} {[%emt 00:00:18]} Rh7 {[%clk
00:23:57]} {[%emt 00:00:52]} 54. Kf5 {[%clk 00:31:50]} {[%emt 00:00:17]} Rh8
{[%clk 00:23:24]} {[%emt 00:01:01]} 55. Kg6 {[%clk 00:31:28]} {[%emt 00:00:53]}
g4 {[%clk 00:22:28]} {[%emt 00:01:25]} 56. Rd3+ {[%clk 00:30:08]} {[%emt
00:01:50]} Ke5 {[%clk 00:22:24]} {[%emt 00:00:35]} 57. Kg7 {[%clk 00:30:34]}
{[%emt 00:00:04]} Ra8 {[%clk 00:21:30]} {[%emt 00:01:24]} 58. Kxh6 {[%clk
00:30:56]} {[%emt 00:00:09]} g3 {[%clk 00:21:28]} {[%emt 00:00:30]} 59. Kg5
{[%clk 00:30:11]} {[%emt 00:01:16]} g2 {[%clk 00:21:46]} {[%emt 00:00:12]} 0-1

[Event "Allsvenskan Div I 3 2023/2024: SS Manhem - SS Manhem II"]
[Site "Goteborgs schackcentrum, Vegagatan 20, Gothenburg, Sweden"]
[Date "2023.11.19"]
[Round "1.4"]
[White "Troedsson, Anton"]
[Black "Bengtsson, Siv"]
[Result "1-0"]
[TimeControl "90 minutes for 40 moves + 30 minutes for the rest of the game + 30 seconds per move from move one."]
[WhiteFideId "1746006"]
[BlackFideId "1701673"]
[WhiteElo "2153"]
[BlackElo "1995"]

1. Nf3 {[%clk 01:23:16]} {[%emt 00:07:44]} Nf6 {[%clk 01:30:54]} {[%emt
00:00:07]} 2. b3 {[%clk 01:23:31]} {[%emt 00:00:15]} e6 {[%clk 01:29:51]}
{[%emt 00:01:32]} 3. Bb2 {[%clk 01:23:34]} {[%emt 00:00:27]} d5 {[%clk
01:28:25]} {[%emt 00:01:56]} 4. g3 {[%clk 01:23:25]} {[%emt 00:00:39]} c5
{[%clk 01:28:15]} {[%emt 00:00:40]} 5. Bg2 {[%clk 01:23:46]} {[%emt 00:00:10]}
Nc6 {[%clk 01:27:44]} {[%emt 00:01:00]} 6. O-O {[%clk 01:24:11]} {[%emt
00:00:05]} Be7 {[%clk 01:27:15]} {[%emt 00:00:59]} 7. d4 {[%clk 01:24:32]}
{[%emt 00:00:09]} O-O {[%clk 01:21:55]} {[%emt 00:05:50]} 8. Nbd2 {[%clk
01:24:26]} {[%emt 00:00:36]} cxd4 {[%clk 01:11:43]} {[%emt 00:10:43]} 9. Nxd4
{[%clk 01:24:44]} {[%emt 00:00:12]} Nxd4 {[%clk 01:12:07]} {[%emt 00:00:05]} 10.
Bxd4 {[%clk 01:25:09]} {[%emt 00:00:05]} b6 {[%clk 01:05:05]} {[%emt 00:07:32]}
11. c4 {[%clk 01:25:26]} {[%emt 00:00:13]} Bb7 {[%clk 01:05:07]} {[%emt
00:00:27]} 12. Rc1 {[%clk 01:25:29]} {[%emt 00:00:27]} Rc8 {[%clk 01:01:42]}
{[%emt 00:03:56]} 13. e3 {[%clk 01:25:41]} {[%emt 00:00:18]} Ba6 {[%clk
00:55:41]} {[%emt 00:06:31]} 14. Qe2 {[%clk 01:25:30]} {[%emt 00:00:40]} Nd7
{[%clk 00:51:58]} {[%emt 00:04:13]} 15. Qg4 {[%clk 01:19:17]} {[%emt 00:06:43]}
e5 {[%clk 00:45:13]} {[%emt 00:07:17]} 16. Bb2 {[%clk 01:19:16]} {[%emt
00:00:30]} dxc4 {[%clk 00:40:23]} {[%emt 00:05:21]} 17. Nxc4 {[%clk 01:18:51]}
{[%emt 00:00:54]} f5 {[%clk 00:39:59]} {[%emt 00:00:54]} 18. Bd5+ {[%clk
01:18:02]} {[%emt 00:01:19]} Kh8 {[%clk 00:40:14]} {[%emt 00:00:15]} 19. Qh3
{[%clk 01:17:18]} {[%emt 00:01:14]} b5 {[%clk 00:29:19]} {[%emt 00:11:25]} 20.
Rfd1 {[%clk 01:03:49]} {[%emt 00:13:59]} bxc4 {[%clk 00:24:53]} {[%emt
00:04:56]} 21. Be6 {[%clk 01:04:09]} {[%emt 00:00:10]} cxb3 {[%clk 00:12:13]}
{[%emt 00:13:10]} 22. Rxc8 {[%clk 00:55:43]} {[%emt 00:08:56]} Bxc8 {[%clk
00:07:22]} {[%emt 00:05:20]} 23. Bxf5 {[%clk 00:56:01]} {[%emt 00:00:14]} Rxf5
{[%clk 00:04:51]} {[%emt 00:03:01]} 24. Qxf5 {[%clk 00:56:28]} {[%emt
00:00:02]} Qc7 {[%clk 00:04:25]} {[%emt 00:00:55]} 25. axb3 {[%clk 00:55:41]}
{[%emt 00:01:18]} Bf6 {[%clk 00:04:28]} {[%emt 00:00:28]} 26. Qe6 {[%clk
00:55:31]} {[%emt 00:00:39]} Nf8 {[%clk 00:02:34]} {[%emt 00:02:25]} 27. Qe8
{[%clk 00:55:45]} {[%emt 00:00:14]} Be7 {[%clk 00:01:07]} {[%emt 00:01:58]} 28.
Rc1 {[%clk 00:56:06]} {[%emt 00:00:09]} Qd7 {[%clk 00:01:29]} {[%emt 00:00:08]}
29. Qxc8 {[%clk 00:56:21]} {[%emt 00:00:15]} Qd6 {[%clk 00:01:05]} {[%emt
00:00:54]} 30. Qc7 {[%clk 00:56:35]} {[%emt 00:00:15]} Kg8 {[%clk 00:00:54]}
{[%emt 00:00:43]} 31. Bxe5 {[%clk 00:56:52]} {[%emt 00:00:12]} Qa3 {[%clk
00:01:04]} {[%emt 00:00:20]} 32. Ra1 {[%clk 00:57:10]} {[%emt 00:00:13]} Qc5
{[%clk 00:01:18]} {[%emt 00:00:16]} 33. Ra2 {[%emt 00:00:14]} Qd5 {[%clk
00:01:11]} 34. Rxa7 {[%clk 00:57:45]} 1-0